[Event "GER-ch Youth U12w 2019"]
[Site "Willingen"]
[Date "2019.06.09"]
[Round "1.9"]
[White "Trunz, Michelle"]
[Black "Leongardt, Adel"]
[Result "1-0"]
[ECO "B06"]
[WhiteElo "1505"]
[BlackElo "1179"]
[Annotator "NA"]
[PlyCount "89"]
[EventDate "2019.06.07"]
[EventType "swiss"]
[EventRounds "9"]
[EventCountry "GER"]
[SourceTitle "playchess.com"]
[Source "ChessBase"]
[SourceQuality "1"]
[TimeControl "40/4500+30:900+30"]

1. e4 {[%emt 0:00:00]} g6 {[%emt 0:00:00]} 2. Nc3 {[%emt 0:00:00]} Bg7 {[%emt 0:00:00]} 3. d4 {[%emt 0:00:00]} d6 {[%emt 0:00:00]} 4. f4 {[%emt 0:00:00]} e5 {[%emt 0:00:00]} 5. fxe5 {[%emt 0:00:00]} dxe5 {[%emt 0:00:00]} 6. d5 {[%emt 0:00:00]} Ne7 {[%emt 0:00:00]} 7. Nf3 {[%emt 0:00:00]} O-O {[%emt 0:00:00]} 8. Bc4 {[%emt 0:00:00]} Kh8 {[%emt 0:00:00]} 9. O-O {[%emt 0:00:00]} Bg4 {[%emt 0:00:00]} 10. h3 {[%emt 0:00:00]} Bxf3 {[%emt 0:00:00]} 11. Rxf3 {[%emt 0:00:00]} f5 {[%emt 0:00:00]} 12. Qf1 {[%emt 0:00:00]} Nd7 {[%emt 0:00:00]} 13. Bg5 {[%emt 0:00:58]} fxe4 {[%emt 0:00:00]} 14. Rxf8+ {[%emt 0:01:01]} Qxf8 {[%emt 0:00:00]} 15. Qxf8+ {[%emt 0:00:20]} Bxf8 {[%emt 0:00:00]} 16. Bxe7 {[%emt 0:01:13]} Bxe7 {[%emt 0:00:00]} 17. Nxe4 {[%emt 0:00:27]} Nc5 {[%emt 0:00:00]} 18. Nc3 {[%emt 0:01:54]} Bd6 {[%emt 0:00:00]} 19. b4 {[%emt 0:02:49]} Nd7 {[%emt 0:00:00]} 20. a3 {[%emt 0:00:26]} Nf6 {[%emt 0:00:00]} 21. Rf1 {[%emt 0:01:03]} Kg7 {[%emt 0:00:00]} 22. g4 {[%emt 0:01:05]} e4 {[%emt 0:00:00]} 23. g5 {[%emt 0:01:41]} Nh5 {[%emt 0:00:00]} 24. Nxe4 {[%emt 0:01:45]} Be5 {[%emt 0:00:00]} 25. d6 {[%emt 0:08:06]} cxd6 {[%emt 0:00:27]} 26. Rf7+ {[%emt 0:02:21]} Kh8 {[%emt 0:00:10]} 27. Nf6 {[%emt 0:03:43]} Nxf6 {[%emt 0:01:02]} 28. gxf6 {[%emt 0:00:41]} Rc8 {[%emt 0:00:51]} 29. Be6 {[%emt 0:01:42]} Re8 {[%emt 0:01:12]} 30. Re7 {[%emt 0:01:26]} Rf8 {[%emt 0:01:32]} 31. f7 {[%emt 0:00:34]} b5 {[%emt 0:01:12]} 32. c4 {[%emt 0:02:38]} bxc4 {[%emt 0:00:40]} 33. Bxc4 {[%emt 0:01:00]} Kg7 {[%emt 0:00:45]} 34. Re8 {[%emt 0:02:40]} a6 {[%emt 0:01:02]} 35. a4 {[%emt 0:01:03]} Bc3 {[%emt 0:00:42]} 36. b5 {[%emt 0:00:39]} Bd4+ {[%emt 0:00:34]} 37. Kf1 {[%emt 0:01:19]} axb5 {[%emt 0:00:18]} 38. axb5 h5 {[%emt 0:01:01]} 39. Ke2 {[%emt 0:00:44]} h4 {[%emt 0:08:53]} 40. Kf3 {[%emt 0:00:17]} g5 {[%emt 0:01:53]} 41. Kg4 {[%emt 0:15:09]} Kf6 {[%emt 0:15:20]} 42. Rxf8 {[%emt 0:00:06]} Ke7 {[%emt 0:00:45]} 43. Re8+ {[%emt 0:00:09]} Kf6 {[%emt 0:00:23]} 44. f8=Q+ {[%emt 0:00:05]} Kg6 {[%emt 0:00:20]} 45. Bd3# {[%emt 0:00:10] normal} 1-0

[Event "GER-ch Youth U12w 2019"]
[Site "Willingen"]
[Date "2019.06.09"]
[Round "2.1"]
[White "Labuda, Annika"]
[Black "Zhou, Lepu Coco"]
[Result "0-1"]
[ECO "C47"]
[WhiteElo "1251"]
[BlackElo "1724"]
[Annotator "NA"]
[PlyCount "73"]
[EventDate "2019.06.07"]
[EventType "swiss"]
[EventRounds "9"]
[EventCountry "GER"]
[SourceTitle "playchess.com"]
[Source "ChessBase"]
[SourceQuality "1"]
[TimeControl "40/4500+30:900+30"]

1. e4 {[%emt 0:00:00]} e5 {[%emt 0:00:00]} 2. Nf3 {[%emt 0:00:00]} Nc6 {[%emt 0:00:00]} 3. Nc3 {[%emt 0:00:00]} Nf6 {[%emt 0:00:00]} 4. d4 {[%emt 0:00:00]} exd4 {[%emt 0:00:00]} 5. Nxd4 {[%emt 0:00:00]} Bb4 {[%emt 0:00:00]} 6. Nxc6 {[%emt 0:00:00]} bxc6 {[%emt 0:00:00]} 7. Bd3 {[%emt 0:00:00]} d5 {[%emt 0:00:00]} 8. exd5 {[%emt 0:00:00]} cxd5 {[%emt 0:00:00]} 9. O-O {[%emt 0:00:00]} O-O {[%emt 0:00:00]} 10. h3 {[%emt 0:00:00]} Be6 {[%emt 0:00:00]} 11. Qf3 {[%emt 0:00:00]} c6 {[%emt 0:00:00]} 12. Bf4 {[%emt 0:00:00]} Bd6 {[%emt 0:00:00]} 13. Rad1 {[%emt 0:00:00]} Bxf4 {[%emt 0:00:00]} 14. Qxf4 {[%emt 0:00:00]} Qb8 {[%emt 0:00:00]} 15. Qxb8 {[%emt 0:00:00]} Raxb8 {[%emt 0:00:00]} 16. b3 {[%emt 0:00:00]} Nd7 {[%emt 0:00:00]} 17. Na4 {[%emt 0:00:00]} Ne5 {[%emt 0:00:00]} 18. Nc5 {[%emt 0:00:00]} Nxd3 {[%emt 0:00:00]} 19. Nxe6 {[%emt 0:00:00]} fxe6 {[%emt 0:00:00]} 20. Rxd3 {[%emt 0:00:00]} e5 {[%emt 0:00:00]} 21. Rc3 {[%emt 0:00:00]} Rf6 {[%emt 0:01:41]} 22. Re3 {[%emt 0:00:00]} e4 {[%emt 0:00:25]} 23. f3 {[%emt 0:00:00]} Rbf8 {[%emt 0:00:09]} 24. c3 {[%emt 0:00:00]} g6 {[%emt 0:01:46]} 25. g4 {[%emt 0:00:00]} exf3 {[%emt 0:02:04]} 26. Kf2 {[%emt 0:00:00]} c5 {[%emt 0:02:58]} 27. Rd3 {[%emt 0:00:00]} Ra6 {[%emt 0:01:03]} 28. Ra1 {[%emt 0:00:55]} c4 {[%emt 0:01:40]} 29. Rxd5 {[%emt 0:00:39]} cxb3 {[%emt 0:00:09]} 30. Rb5 {[%emt 0:00:12]} bxa2 {[%emt 0:00:26]} 31. Rb2 {[%emt 0:00:18]} Rc6 {[%emt 0:03:28]} 32. Raxa2 {[%emt 0:00:14]} a6 {[%emt 0:01:04]} 33. Ra3 {[%emt 0:00:25]} Rfc8 {[%emt 0:08:38]} 34. Rbb3 {[%emt 0:02:00]} Rf8 {[%emt 0:02:32]} 35. Rb4 {[%emt 0:01:01]} h5 {[%emt 0:03:14]} 36. Re4 {[%emt 0:01:17]} hxg4 {[%emt 0:03:10]} 37. Rxg4 {[%emt 0:03:38] normal} 0-1

[Event "GER-ch Youth U12w 2019"]
[Site "Willingen"]
[Date "2019.06.09"]
[Round "2.2"]
[White "Ramien, Hannah"]
[Black "Pohle, Saskia"]
[Result "1/2-1/2"]
[ECO "B23"]
[WhiteElo "1296"]
[BlackElo "1819"]
[Annotator "NA"]
[PlyCount "83"]
[EventDate "2019.06.07"]
[EventType "swiss"]
[EventRounds "9"]
[EventCountry "GER"]
[SourceTitle "playchess.com"]
[Source "ChessBase"]
[SourceQuality "1"]
[TimeControl "40/4500+30:900+30"]

1. e4 {[%emt 0:00:00]} c5 {[%emt 0:00:00]} 2. Nc3 {[%emt 0:00:00]} a6 {[%emt 0:00:00]} 3. f4 {[%emt 0:00:00]} b5 {[%emt 0:00:00]} 4. Nf3 {[%emt 0:00:00]} Bb7 {[%emt 0:00:00]} 5. d3 {[%emt 0:00:00]} e6 {[%emt 0:00:00]} 6. Be2 {[%emt 0:00:00]} d5 {[%emt 0:00:00]} 7. exd5 {[%emt 0:00:00]} exd5 {[%emt 0:00:00]} 8. d4 {[%emt 0:00:58]} Nf6 {[%emt 0:00:00]} 9. O-O {[%emt 0:12:04]} Be7 {[%emt 0:00:00]} 10. Be3 {[%emt 0:02:48]} Ng4 {[%emt 0:00:00]} 11. Qd2 {[%emt 0:01:07]} Nxe3 {[%emt 0:00:00]} 12. Qxe3 {[%emt 0:00:09]} Nc6 {[%emt 0:00:00]} 13. Rad1 {[%emt 0:04:51]} cxd4 {[%emt 0:04:06]} 14. Nxd4 {[%emt 0:00:38]} O-O {[%emt 0:02:34]} 15. Nxc6 {[%emt 0:02:00]} Bxc6 {[%emt 0:00:09]} 16. Bf3 {[%emt 0:02:42]} d4 {[%emt 0:08:48]} 17. Qe2 {[%emt 0:10:35]} Bxf3 {[%emt 0:00:23]} 18. Qxf3 {[%emt 0:00:12]} Bc5 {[%emt 0:01:46]} 19. Kh1 {[%emt 0:00:12]} Qc7 {[%emt 0:02:15]} 20. Ne4 {[%emt 0:02:17]} Ba7 {[%emt 0:00:50]} 21. c3 {[%emt 0:00:49]} Rad8 {[%emt 0:02:56]} 22. cxd4 {[%emt 0:02:30]} Rxd4 {[%emt 0:00:44]} 23. Rxd4 {[%emt 0:01:08]} Bxd4 {[%emt 0:00:08]} 24. Qe2 {[%emt 0:03:04]} Qc6 {[%emt 0:03:49]} 25. Rd1 {[%emt 0:01:29]} Ba7 {[%emt 0:03:58]} 26. Rd6 {[%emt 0:00:45]} Qc1+ {[%emt 0:00:49]} 27. Qd1 {[%emt 0:01:40]} Qxf4 {[%emt 0:01:01]} 28. Rxa6 {[%emt 0:00:30]} Bb8 {[%emt 0:00:32]} 29. Ng3 {[%emt 0:00:12]} Qf2 {[%emt 0:02:35]} 30. Ne2 {[%emt 0:01:16]} Ba7 {[%emt 0:04:22]} 31. Rd6 {[%emt 0:02:56]} Bb6 {[%emt 0:02:11]} 32. Rd2 {[%emt 0:06:30]} Re8 {[%emt 0:01:43]} 33. b3 {[%emt 0:01:57]} h6 {[%emt 0:01:50]} 34. Rc2 {[%emt 0:01:58]} Re6 {[%emt 0:01:37]} 35. Rc8+ {[%emt 0:01:28]} Kh7 {[%emt 0:00:13]} 36. Rc2 {[%emt 0:00:14]} f5 {[%emt 0:03:08]} 37. h3 {[%emt 0:00:38]} f4 {[%emt 0:06:36]} 38. Kh2 {[%emt 0:01:58]} Rg6 {[%emt 0:06:05]} 39. Qg1 {[%emt 0:03:43]} Qh4 {[%emt 0:00:21]} 40. Qf1 {[%emt 0:00:34]} Be3 {[%emt 0:01:53]} 41. a4 {[%emt 0:17:11]} bxa4 {[%emt 0:16:25]} 42. bxa4 {[%emt 0:00:10] normal} 1/2-1/2

[Event "GER-ch Youth U12w 2019"]
[Site "Willingen"]
[Date "2019.06.09"]
[Round "2.3"]
[White "Sereda, Yaroslava"]
[Black "Hubert, Charlotte"]
[Result "1-0"]
[ECO "C42"]
[WhiteElo "1626"]
[BlackElo "1311"]
[Annotator "NA"]
[PlyCount "70"]
[EventDate "2019.06.07"]
[EventType "swiss"]
[EventRounds "9"]
[EventCountry "GER"]
[SourceTitle "playchess.com"]
[Source "ChessBase"]
[SourceQuality "1"]
[TimeControl "40/4500+30:900+30"]

1. e4 {[%emt 0:00:00]} e5 {[%emt 0:00:00]} 2. Nf3 {[%emt 0:00:00]} Nf6 {[%emt 0:00:00]} 3. Nxe5 {[%emt 0:00:00]} d6 {[%emt 0:00:00]} 4. Nf3 {[%emt 0:00:00]} Nxe4 {[%emt 0:00:00]} 5. d4 {[%emt 0:00:00]} d5 {[%emt 0:00:00]} 6. Bd3 {[%emt 0:00:00]} Be7 {[%emt 0:00:00]} 7. O-O {[%emt 0:00:00]} Nc6 {[%emt 0:00:00]} 8. c4 {[%emt 0:00:00]} Bf5 {[%emt 0:00:00]} 9. Re1 {[%emt 0:00:00]} Nb4 {[%emt 0:00:00]} 10. Bf1 {[%emt 0:00:00]} O-O {[%emt 0:04:50]} 11. a3 {[%emt 0:01:48]} Nc6 {[%emt 0:00:32]} 12. Bd3 {[%emt 0:00:49]} Bf6 {[%emt 0:06:07]} 13. cxd5 {[%emt 0:01:11]} Qxd5 {[%emt 0:00:36]} 14. Bxe4 {[%emt 0:01:28]} Bxe4 {[%emt 0:00:36]} 15. Nc3 {[%emt 0:00:43]} Bxf3 {[%emt 0:02:19]} 16. Nxd5 {[%emt 0:00:30]} Bxd1 {[%emt 0:00:14]} 17. Nxf6+ {[%emt 0:00:05]} gxf6 {[%emt 0:00:21]} 18. Rxd1 {[%emt 0:00:08]} Rfe8 {[%emt 0:01:42]} 19. Be3 {[%emt 0:01:05]} Rad8 {[%emt 0:02:12]} 20. Rac1 {[%emt 0:02:23]} Rd7 {[%emt 0:04:08]} 21. g3 {[%emt 0:20:28]} Ne7 {[%emt 0:14:33]} 22. Kg2 {[%emt 0:08:18]} Nd5 {[%emt 0:09:41]} 23. Re1 {[%emt 0:01:09]} Nxe3+ {[%emt 0:05:54]} 24. fxe3 {[%emt 0:01:38]} Rde7 {[%emt 0:03:06]} 25. Kf3 {[%emt 0:00:22]} c6 {[%emt 0:03:00]} 26. b4 {[%emt 0:00:41]} Rd8 {[%emt 0:09:51]} 27. Re2 {[%emt 0:02:18]} Rd5 {[%emt 0:03:01]} 28. Rc5 {[%emt 0:01:16]} Red7 {[%emt 0:03:47]} 29. Rec2 {[%emt 0:00:45]} Kf8 {[%emt 0:04:31]} 30. a4 {[%emt 0:02:40]} Rxc5 {[%emt 0:02:47]} 31. Rxc5 {[%emt 0:00:19]} Rd5 {[%emt 0:00:40]} 32. a5 {[%emt 0:00:41]} a6 {[%emt 0:01:30]} 33. Ke4 {[%emt 0:01:43]} Rd6 {[%emt 0:02:02]} 34. Kd3 {[%emt 0:04:06]} Ke7 {[%emt 0:00:55]} 35. e4 {[%emt 0:00:41]} Kd7 {[%emt 0:01:00] normal} 1-0

[Event "GER-ch Youth U12w 2019"]
[Site "Willingen"]
[Date "2019.06.09"]
[Round "2.4"]
[White "Eichhorn, Mathilda Sophie"]
[Black "Braeutigam, Katerina"]
[Result "0-1"]
[ECO "B10"]
[WhiteElo "1452"]
[BlackElo "1697"]
[Annotator "NA"]
[PlyCount "38"]
[EventDate "2019.06.07"]
[EventType "swiss"]
[EventRounds "9"]
[EventCountry "GER"]
[SourceTitle "playchess.com"]
[Source "ChessBase"]
[SourceQuality "1"]
[TimeControl "40/4500+30:900+30"]

1. e4 c6 2. Nf3 {[%emt 0:00:00]} d5 {[%emt 0:00:00]} 3. exd5 {[%emt 0:00:00]} cxd5 {[%emt 0:00:00]} 4. d4 {[%emt 0:00:00]} Nc6 {[%emt 0:00:00]} 5. Be2 {[%emt 0:00:00]} Qc7 {[%emt 0:00:00]} 6. Nc3 {[%emt 0:00:00]} Nf6 {[%emt 0:00:00]} 7. Be3 {[%emt 0:00:00]} Bf5 {[%emt 0:00:00]} 8. O-O {[%emt 0:00:00]} a6 {[%emt 0:00:00]} 9. a3 {[%emt 0:00:00]} e6 {[%emt 0:00:00]} 10. Nd2 {[%emt 0:01:04]} Bd6 {[%emt 0:00:00]} 11. f4 {[%emt 0:01:37]} g5 {[%emt 0:01:58]} 12. g3 gxf4 13. Bxf4 Nxd4 14. Bxd6 Qxd6 15. Rc1 {[%emt 0:06:42]} Rg8 16. Kg2 Qc6 {[%emt 0:10:19]} 17. Kg1 {[%emt 0:04:04]} Ke7 {[%emt 0:04:04]} 18. Nf3 {[%emt 0:09:37]} Nxe2+ {[%emt 0:03:16]} 19. Qxe2 {[%emt 0:01:44]} Bh3 {[%emt 0:00:50] normal} 0-1

[Event "GER-ch Youth U12w 2019"]
[Site "Willingen"]
[Date "2019.06.09"]
[Round "2.5"]
[White "Ulrich, Helena Irene"]
[Black "Roncea, Andrea-Alexandra"]
[Result "0-1"]
[ECO "C70"]
[WhiteElo "1514"]
[BlackElo "1558"]
[Annotator "NA"]
[PlyCount "36"]
[EventDate "2019.06.07"]
[EventType "swiss"]
[EventRounds "9"]
[EventCountry "GER"]
[SourceTitle "playchess.com"]
[Source "ChessBase"]
[SourceQuality "1"]
[TimeControl "40/4500+30:900+30"]

1. e4 {[%emt 0:00:00]} e5 {[%emt 0:00:00]} 2. Nf3 {[%emt 0:00:00]} Nc6 {[%emt 0:00:00]} 3. Bb5 {[%emt 0:00:00]} a6 {[%emt 0:00:00]} 4. Ba4 {[%emt 0:00:00]} b5 {[%emt 0:00:00]} 5. Bb3 {[%emt 0:00:00]} Bb7 {[%emt 0:00:00]} 6. O-O {[%emt 0:00:00]} Be7 {[%emt 0:00:00]} 7. c3 {[%emt 0:00:00]} Nf6 {[%emt 0:00:00]} 8. d3 {[%emt 0:00:00]} O-O {[%emt 0:00:00]} 9. Nbd2 {[%emt 0:00:00]} h6 {[%emt 0:00:00]} 10. Re1 {[%emt 0:00:00]} Re8 {[%emt 0:00:00]} 11. Nf1 {[%emt 0:00:00]} Bf8 {[%emt 0:00:00]} 12. Ng3 {[%emt 0:00:23]} Na5 {[%emt 0:00:00]} 13. Bc2 {[%emt 0:01:03]} c5 {[%emt 0:00:00]} 14. a4 {[%emt 0:04:46]} Qc7 {[%emt 0:01:15]} 15. Nf5 {[%emt 0:05:47]} d5 {[%emt 0:06:06]} 16. exd5 {[%emt 0:04:58]} Bxd5 {[%emt 0:03:43]} 17. Be3 {[%emt 0:05:17]} Be6 {[%emt 0:05:34]} 18. Ng3 {[%emt 0:01:36]} Nc6 {[%emt 0:01:54] normal} 0-1

[Event "GER-ch Youth U12w 2019"]
[Site "Willingen"]
[Date "2019.06.09"]
[Round "2.6"]
[White "Glowiak, Alexandra"]
[Black "Trunz, Michelle"]
[Result "1-0"]
[ECO "B90"]
[WhiteElo "1439"]
[BlackElo "1505"]
[Annotator "NA"]
[PlyCount "105"]
[EventDate "2019.06.07"]
[EventType "swiss"]
[EventRounds "9"]
[EventCountry "GER"]
[SourceTitle "playchess.com"]
[Source "ChessBase"]
[SourceQuality "1"]
[TimeControl "40/4500+30:900+30"]

1. e4 {[%emt 0:00:00]} c5 {[%emt 0:00:00]} 2. Nf3 {[%emt 0:00:00]} d6 {[%emt 0:00:00]} 3. d4 {[%emt 0:00:00]} cxd4 {[%emt 0:00:00]} 4. Nxd4 {[%emt 0:00:00]} Nf6 {[%emt 0:00:00]} 5. Nc3 {[%emt 0:00:00]} a6 {[%emt 0:00:00]} 6. f3 {[%emt 0:00:00]} e6 {[%emt 0:00:00]} 7. Bg5 {[%emt 0:00:00]} Be7 {[%emt 0:00:00]} 8. Qd2 {[%emt 0:00:00]} O-O {[%emt 0:00:00]} 9. O-O-O {[%emt 0:00:00]} Qc7 {[%emt 0:00:00]} 10. Qe3 {[%emt 0:02:13]} b5 {[%emt 0:00:00]} 11. Kb1 {[%emt 0:00:39]} Bb7 {[%emt 0:00:00]} 12. Nb3 {[%emt 0:04:20]} Nbd7 {[%emt 0:00:00]} 13. Be2 {[%emt 0:01:25]} Rfc8 {[%emt 0:00:00]} 14. Rc1 {[%emt 0:02:20]} b4 {[%emt 0:00:00]} 15. Nd1 {[%emt 0:00:23]} a5 {[%emt 0:00:00]} 16. c3 {[%emt 0:01:35]} bxc3 {[%emt 0:00:00]} 17. Nxc3 {[%emt 0:00:24]} Qd8 {[%emt 0:00:00]} 18. Rhd1 {[%emt 0:02:05]} a4 {[%emt 0:00:00]} 19. Nd4 {[%emt 0:00:55]} Nxe4 {[%emt 0:00:54]} 20. Bxe7 {[%emt 0:03:20]} Nxc3+ {[%emt 0:01:06]} 21. Rxc3 {[%emt 0:01:38]} Rxc3 {[%emt 0:01:51]} 22. Qxc3 {[%emt 0:00:09]} Qxe7 {[%emt 0:00:29]} 23. Qc7 {[%emt 0:06:40]} Bd5 {[%emt 0:29:56]} 24. Bb5 {[%emt 0:04:38]} Rd8 {[%emt 0:07:33]} 25. Bxa4 {[%emt 0:01:35]} Kf8 {[%emt 0:02:05]} 26. Nc6 {[%emt 0:03:03]} Bxc6 {[%emt 0:00:32]} 27. Bxc6 {[%emt 0:00:06]} Ne5 {[%emt 0:01:40]} 28. Qxe7+ {[%emt 0:00:15]} Kxe7 {[%emt 0:00:07]} 29. Be4 {[%emt 0:00:37]} d5 {[%emt 0:00:24]} 30. Bd3 {[%emt 0:00:54]} Kd6 {[%emt 0:00:46]} 31. b4 {[%emt 0:00:52]} Rb8 {[%emt 0:00:52]} 32. a3 {[%emt 0:00:19]} Nxd3 {[%emt 0:01:15]} 33. Rxd3 {[%emt 0:00:08]} e5 {[%emt 0:00:18]} 34. Kc2 {[%emt 0:00:58]} d4 {[%emt 0:01:34]} 35. Rb3 {[%emt 0:01:56]} Ra8 {[%emt 0:00:38]} 36. Kd3 {[%emt 0:03:12]} f5 {[%emt 0:01:01]} 37. f4 {[%emt 0:01:49]} g5 {[%emt 0:04:08]} 38. fxe5+ {[%emt 0:00:21]} Kxe5 {[%emt 0:00:07]} 39. b5 {[%emt 0:00:28]} Rb8 {[%emt 0:02:21]} 40. b6 {[%emt 0:02:15]} Kd6 {[%emt 0:00:33]} 41. b7 {[%emt 0:15:10]} Kc7 {[%emt 0:16:45]} 42. Kxd4 {[%emt 0:00:32]} Rd8+ {[%emt 0:00:37]} 43. Kc5 {[%emt 0:01:00]} Kb8 {[%emt 0:00:20]} 44. Kc6 {[%emt 0:03:03]} f4 {[%emt 0:00:40]} 45. Rb5 {[%emt 0:02:13]} Rd2 {[%emt 0:00:48]} 46. Rxg5 {[%emt 0:01:08]} Rc2+ {[%emt 0:00:20]} 47. Kb6 {[%emt 0:00:43]} Rb2+ {[%emt 0:00:28]} 48. Ka6 {[%emt 0:00:27]} Rb3 {[%emt 0:05:30]} 49. Rg8+ {[%emt 0:00:29]} Kc7 {[%emt 0:00:09]} 50. Rc8+ {[%emt 0:00:14]} Kd7 {[%emt 0:00:39]} 51. b8=Q {[%emt 0:00:13]} Rxa3+ {[%emt 0:00:46]} 52. Kb5 {[%emt 0:00:11]} Rb3+ {[%emt 0:00:22]} 53. Kc4 {[%emt 0:00:06] normal} 1-0

[Event "GER-ch Youth U12w 2019"]
[Site "Willingen"]
[Date "2019.06.09"]
[Round "2.7"]
[White "Wilmink, Anna"]
[Black "Hoffmann, Sophia"]
[Result "1-0"]
[ECO "C45"]
[WhiteElo "1466"]
[BlackElo "1347"]
[Annotator "NA"]
[PlyCount "60"]
[EventDate "2019.06.07"]
[EventType "swiss"]
[EventRounds "9"]
[EventCountry "GER"]
[SourceTitle "playchess.com"]
[Source "ChessBase"]
[SourceQuality "1"]
[TimeControl "40/4500+30:900+30"]

1. e4 {[%emt 0:00:00]} e5 {[%emt 0:00:00]} 2. Nf3 {[%emt 0:00:00]} Nc6 {[%emt 0:00:00]} 3. d4 {[%emt 0:00:00]} exd4 {[%emt 0:00:00]} 4. Nxd4 {[%emt 0:00:00]} Bc5 {[%emt 0:00:00]} 5. Be3 {[%emt 0:00:00]} Qf6 {[%emt 0:00:00]} 6. c3 {[%emt 0:00:00]} Nge7 {[%emt 0:00:00]} 7. Bc4 {[%emt 0:00:00]} b6 {[%emt 0:00:00]} 8. b4 {[%emt 0:00:00]} Bd6 {[%emt 0:00:00]} 9. Nd2 {[%emt 0:00:00]} Bb7 {[%emt 0:00:00]} 10. N2f3 {[%emt 0:00:07]} Nxd4 {[%emt 0:00:00]} 11. Bxd4 {[%emt 0:00:36]} Qg6 {[%emt 0:00:00]} 12. e5 {[%emt 0:02:56]} Qxg2 {[%emt 0:00:00]} 13. Rg1 {[%emt 0:00:52]} Qxf3 {[%emt 0:00:00]} 14. Qxf3 {[%emt 0:00:50]} Bxf3 {[%emt 0:00:00]} 15. exd6 {[%emt 0:00:32]} cxd6 {[%emt 0:00:00]} 16. Rxg7 {[%emt 0:00:55]} Bh5 {[%emt 0:00:00]} 17. Rg5 {[%emt 0:00:55]} Bg6 {[%emt 0:00:00]} 18. Bxh8 {[%emt 0:00:20]} Nf5 {[%emt 0:00:00]} 19. Kf1 {[%emt 0:02:49]} Nh4 {[%emt 0:00:00]} 20. Bd5 {[%emt 0:04:00]} O-O-O {[%emt 0:00:00]} 21. Bf6 {[%emt 0:01:10]} Bd3+ {[%emt 0:00:01]} 22. Kg1 {[%emt 0:02:05]} Re8 {[%emt 0:00:51]} 23. Rg3 {[%emt 0:00:46]} Be4 {[%emt 0:01:06]} 24. Bxf7 {[%emt 0:01:53]} Rf8 {[%emt 0:00:43]} 25. Rg8 {[%emt 0:00:46]} Rxg8+ {[%emt 0:01:04]} 26. Bxg8 {[%emt 0:00:22]} Nf3+ {[%emt 0:00:27]} 27. Kf1 {[%emt 0:00:58]} Nxh2+ {[%emt 0:00:28]} 28. Ke2 {[%emt 0:00:33]} h6 {[%emt 0:01:31]} 29. Bh4 {[%emt 0:05:07]} Kc7 {[%emt 0:02:38]} 30. Ke3 {[%emt 0:03:27]} Bc6 {[%emt 0:01:23] normal} 1-0

[Event "GER-ch Youth U12w 2019"]
[Site "Willingen"]
[Date "2019.06.09"]
[Round "2.8"]
[White "Keymer, Cecilia"]
[Black "Vianden, Ella"]
[Result "1-0"]
[ECO "D30"]
[WhiteElo "1511"]
[BlackElo "1328"]
[Annotator "NA"]
[PlyCount "55"]
[EventDate "2019.06.07"]
[EventType "swiss"]
[EventRounds "9"]
[EventCountry "GER"]
[SourceTitle "playchess.com"]
[Source "ChessBase"]
[SourceQuality "1"]
[TimeControl "40/4500+30:900+30"]

1. d4 {[%emt 0:00:00]} d5 {[%emt 0:00:00]} 2. c4 {[%emt 0:00:00]} e6 {[%emt 0:00:00]} 3. Nf3 {[%emt 0:00:00]} a6 {[%emt 0:00:00]} 4. cxd5 {[%emt 0:00:00]} exd5 {[%emt 0:00:00]} 5. Nc3 {[%emt 0:00:00]} Nf6 {[%emt 0:00:00]} 6. Bg5 {[%emt 0:00:00]} Be6 {[%emt 0:00:00]} 7. e3 {[%emt 0:00:00]} Nbd7 {[%emt 0:00:00]} 8. Bd3 {[%emt 0:00:00]} Bd6 {[%emt 0:00:00]} 9. Qc2 {[%emt 0:00:00]} c6 {[%emt 0:00:00]} 10. O-O {[%emt 0:00:13]} Qc7 {[%emt 0:00:00]} 11. Bf5 {[%emt 0:05:12]} O-O {[%emt 0:06:56]} 12. Rab1 {[%emt 0:07:55]} h6 {[%emt 0:01:33]} 13. Bh4 {[%emt 0:02:05]} Rab8 {[%emt 0:08:08]} 14. b4 {[%emt 0:03:59]} b5 {[%emt 0:07:29]} 15. Bxe6 {[%emt 0:09:01]} fxe6 {[%emt 0:02:12]} 16. Qg6 {[%emt 0:01:58]} Rb7 {[%emt 0:09:52]} 17. e4 {[%emt 0:07:46]} dxe4 {[%emt 0:03:20]} 18. Nxe4 {[%emt 0:00:34]} Nxe4 {[%emt 0:02:22]} 19. Qxe6+ {[%emt 0:04:40]} Kh8 {[%emt 0:02:46]} 20. Qxe4 {[%emt 0:00:57]} Nf6 {[%emt 0:06:00]} 21. Qd3 {[%emt 0:06:03]} Rbb8 {[%emt 0:05:46]} 22. Bg3 {[%emt 0:01:49]} Ng4 {[%emt 0:02:52]} 23. Qg6 {[%emt 0:03:03]} Nf6 {[%emt 0:01:27]} 24. Ne5 {[%emt 0:01:39]} Rbe8 {[%emt 0:03:57]} 25. Rfc1 {[%emt 0:01:45]} Re6 {[%emt 0:05:53]} 26. Rxc6 {[%emt 0:01:37]} Qb8 {[%emt 0:00:51]} 27. Qc2 {[%emt 0:04:05]} Rfe8 {[%emt 0:02:21]} 28. h3 {[%emt 0:05:41] normal} 1-0